fUST/lending_fUST_20251212
["ID","MTS","AMOUNT","RATE_DAILY","PERIOD"]
[398353784,1765550658535,-2328.13,0.00041917,120]
[398353785,1765550658581,-1190.56,0.00041917,120]
[398353786,1765550658627,-500.0,0.00041917,120]
[398353787,1765550658675,-1766.21,0.00041917,120]
[398353788,1765550658717,-500.0,0.00041917,120]
[398353789,1765550658758,-566.66,0.00041917,120]
[398353790,1765550658797,-500.0,0.00041917,120]
[398353791,1765550658836,-1386.22,0.00041917,120]
[398353792,1765550658874,-717.34,0.00041917,120]
[398353793,1765550658914,-888.61,0.00041917,120]
[398353794,1765550658954,-1317.41,0.00041917,120]
[398353795,1765550658995,-1687.34,0.00041917,120]
[398353796,1765550659037,-500.0,0.00041917,120]
[398353797,1765550659076,-500.0,0.00041917,120]
[398353798,1765550659125,-1002.76,0.00041917,120]
[398353799,1765550659168,-849.49,0.00041917,120]
[398353800,1765550659210,-500.0,0.00041917,120]
[398353801,1765550659251,-5438.09,0.00041917,120]
[398353802,1765550659290,-643.6,0.00041917,120]
[398353803,1765550659329,-792.76,0.00041917,120]
[398353804,1765550659368,-500.0,0.00041917,120]
[398353805,1765550659407,-5550.06,0.00041917,120]
[398353806,1765550659446,-876.53,0.00041917,120]
[398353807,1765550659484,-3422.1,0.00041917,120]
[398353808,1765550659520,-742.28,0.00041917,120]
[398353809,1765550659557,-1603.27,0.00041917,120]
[398353810,1765550659599,-500.0,0.00041917,120]
[398353811,1765550659643,-528.71,0.00041917,120]
[398353812,1765550659687,-500.0,0.00041917,120]
[398353813,1765550659725,-893.45,0.00041917,120]
[398353814,1765550659761,-500.0,0.00041917,120]
[398353815,1765550659799,-863.82,0.00041917,120]
[398353816,1765550659835,-2007.36,0.00041917,120]
[398353819,1765550660030,-8598.22,0.00041917,120]
[398353820,1765550660067,-1629.58,0.00041917,120]
[398353821,1765550660102,-577.55,0.00041917,120]
[398353822,1765550660137,-500.0,0.00041917,60]
[398353823,1765550660172,-500.0,0.00041917,120]
[398353824,1765550660208,-6596.14,0.00041917,120]
[398353825,1765550660243,-500.0,0.00041917,120]
[398353826,1765550660279,-612.89,0.00041917,120]
[398353827,1765550660314,-529.71,0.00041917,120]
[398353828,1765550660352,-500.0,0.00041917,120]
[398353829,1765550660387,-1189.73,0.00041917,120]
[398353830,1765550660424,-1321.92,0.00041917,21]
[398353831,1765550660459,-555.33,0.00041917,120]
[398353832,1765550660492,-500.0,0.00041917,120]
[398353833,1765550660527,-500.0,0.00041917,120]
[398353834,1765550660563,-762.11,0.00041917,120]
[398353835,1765550660599,-2165.66,0.00041917,120]
[398353836,1765550660633,-500.0,0.00041917,120]
[398353837,1765550660668,-500.0,0.00041917,120]
[398353838,1765550660702,-500.0,0.00041917,120]
[398353839,1765550660737,-926.08,0.00041917,120]
[398353840,1765550660771,-927.01,0.00041917,120]
[398353841,1765550660807,-1481.02,0.00041917,120]
[398353842,1765550660842,-9311.53,0.00041917,120]
[398353843,1765550660877,-500.0,0.00041917,120]
[398353844,1765550660911,-638.95,0.00041917,120]
[398353845,1765550660946,-500.72397226,0.00041917,120]
[398353846,1765550660981,-306.06601306,0.00041917,120]
[398353847,1765550661023,-500.0,0.00041917,120]
[398353848,1765550661062,-666.47,0.00041917,120]
[398353849,1765550661119,-544.01,0.00041917,120]
[398353850,1765550661176,-713.64,0.00041917,120]
[398353851,1765550661225,-620.83,0.00041917,120]
[398353852,1765550661271,-9421.58,0.00041917,120]
[398353853,1765550661317,-501.2027484,0.00041917,120]
[398353854,1765550661366,-730.68,0.00041917,120]
[398353855,1765550661412,-500.0,0.00041917,120]
[398353856,1765550661458,-580.18,0.00041917,120]
[398353857,1765550661505,-3515.94,0.00041917,120]
[398353858,1765550661551,-1297.0,0.00041917,30]
[398353859,1765550661601,-633.66,0.00041917,120]
[398353860,1765550661646,-922.4,0.00041917,30]
[398353861,1765550661690,-5514.1,0.00041917,120]
[398353862,1765550661736,-500.0,0.00041917,120]
[398353863,1765550661780,-500.0,0.00041917,120]
[398353864,1765550661837,-4450.87,0.00041917,120]
[398353865,1765550661886,-1066.27,0.00041917,120]
[398353866,1765550661932,-578.39,0.00041917,120]
[398353867,1765550661979,-4678.34,0.00041917,120]
[398353868,1765550662026,-6211.14,0.00041917,120]
[398353869,1765550662071,-631.3,0.00041917,120]
[398353870,1765550662119,-500.0,0.00041917,120]
[398353871,1765550662167,-2126.42,0.00041917,120]
[398353872,1765550662214,-969.25,0.00041917,120]
[398353873,1765550662260,-1905.34,0.00041917,120]
[398353874,1765550662307,-730.44,0.00041917,120]
[398353875,1765550662354,-500.0,0.00041917,120]
[398353876,1765550662401,-2439.18,0.00041917,120]
[398353877,1765550662448,-1146.25,0.00041917,120]
[398353878,1765550662495,-500.0,0.00041917,120]
[398353879,1765550662543,-5316.03,0.00041917,120]
[398353880,1765550662593,-2849.86,0.00041917,120]
[398353881,1765550662638,-11745.46,0.00041917,120]
[398353882,1765550662685,-1652.31,0.00041917,120]
[398353883,1765550662732,-500.0,0.00041917,120]
[398353884,1765550662779,-500.0,0.00041917,120]
[398353885,1765550662827,-980.55,0.00041917,120]
[398353886,1765550662882,-500.0,0.00041917,120]
[398353887,1765550662937,-500.0,0.00041917,120]
[398353888,1765550662985,-1404.64,0.00041917,120]
[398353889,1765550663035,-500.0,0.00041917,120]
[398353890,1765550663088,-1817.08,0.00041917,120]
[398353891,1765550663137,-500.0,0.00041917,120]
[398353892,1765550663185,-552.9,0.00041917,120]
[398353893,1765550663234,-549.80758139,0.00041917,120]
[398353894,1765550663282,-500.0,0.00041917,120]
[398353895,1765550663336,-1877.07,0.00041917,120]
[398353896,1765550663387,-500.0,0.00041917,120]
[398353897,1765550663437,-572.08,0.00041917,120]
[398353898,1765550663485,-1399.66,0.00041917,120]
[398353899,1765550663532,-500.0,0.00041917,120]
[398353900,1765550663583,-647.43,0.00041917,120]
[398353901,1765550663632,-500.0,0.00041917,120]
[398353902,1765550663678,-500.0,0.00041917,120]
[398353903,1765550663725,-500.0,0.00041917,30]
[398353904,1765550663773,-1192.86,0.00041917,120]
[398353905,1765550663820,-500.0,0.00041917,120]
[398353906,1765550663873,-11370.39,0.00041917,120]
[398353907,1765550663924,-1106.66,0.00041917,120]
[398353908,1765550663972,-500.0,0.00041917,120]
[398353909,1765550664020,-2998.58,0.00041917,120]
[398353910,1765550664068,-949.79,0.00041917,120]
[398353911,1765550664117,-582.61,0.00041917,120]
[398353912,1765550664165,-13925.74,0.00041917,120]
[398353913,1765550664212,-5218.25,0.00041917,120]
[398353914,1765550664422,-500.0,0.00041917,120]
[398353915,1765550664464,-1759.22,0.00041917,120]
[398353916,1765550664508,-2423.2,0.00041917,120]
[398353917,1765550664551,-500.0,0.00041917,120]
[398353918,1765550664597,-685.39,0.00041917,120]
[398353919,1765550664640,-500.0,0.00041917,120]
[398353920,1765550664683,-638.48,0.00041917,120]
[398353921,1765550664724,-500.0,0.00041917,120]
[398353922,1765550664766,-554.1,0.00041917,120]
[398353923,1765550664808,-10000.0,0.00041996,120]
[398353924,1765550664850,-947.22554011,0.00042,120]
[398353925,1765550664892,-475.0,0.00042033,120]
[398353926,1765550664935,-475.0,0.00042033,120]
[398353927,1765550664979,-475.0,0.00042126,120]
[398353928,1765550665024,-475.0,0.00042126,120]
[398353929,1765550665072,-475.0,0.00042126,120]
[398353930,1765550665118,-475.0,0.00042126,120]
[398353931,1765550665166,-1668.536328,0.00042191,120]
[398353932,1765550665210,-500.0,0.00042191,120]
[398353933,1765550665253,-542.82,0.00042191,120]
[398353934,1765550665296,-500.0,0.00042191,120]
[398353935,1765550665338,-500.0,0.00042191,120]
[398353936,1765550665380,-1542.23,0.00042191,120]
[398353937,1765550665424,-656.58,0.00042191,120]
[398353938,1765550665468,-500.0,0.00042191,120]
[398353939,1765550665508,-500.0,0.00042191,120]
[398353940,1765550665554,-1149.44,0.00042191,120]
[398353941,1765550665606,-1912.47,0.00042191,120]
[398353942,1765550665649,-500.0,0.00042191,120]
[398353943,1765550665691,-500.0,0.00042191,20]
[398353944,1765550665733,-500.0,0.00042191,120]
[398353945,1765550665774,-573.81219368,0.00042191,120]
[398353946,1765550665815,-500.0,0.00042191,120]
[398353947,1765550665858,-500.0,0.00042191,120]
[398353948,1765550665899,-500.0,0.00042191,120]
[398353949,1765550665940,-500.0,0.00042191,120]
[398353950,1765550665980,-500.0,0.00042191,120]
[398353951,1765550666023,-341.31,0.00042191,120]
[398353952,1765550666064,-500.0,0.00042191,120]
[398353953,1765550666109,-500.46592698,0.00042191,120]
[398353954,1765550666153,-500.0,0.00042191,120]
[398353955,1765550666203,-500.84858514,0.00042191,120]
[398353956,1765550666251,-861.35,0.00042191,120]
[398353957,1765550666307,-500.0,0.00042191,120]
[398353958,1765550666362,-500.0,0.00042191,120]
[398353959,1765550666413,-582.72,0.00042191,120]
[398353960,1765550666463,-500.0,0.00042191,120]
[398353961,1765550666504,-583.25,0.00042191,120]
[398353962,1765550666543,-500.69279721,0.00042191,120]
[398353963,1765550666585,-500.0,0.00042191,120]
[398353964,1765550666626,-625.32,0.00042191,120]
[398353965,1765550666666,-666.03,0.00042191,120]
[398353966,1765550666706,-520.0,0.00042191,120]
[398353967,1765550666746,-500.0,0.00042191,120]
[398353968,1765550666785,-500.0,0.00042191,120]
[398353969,1765550666827,-500.0,0.00042191,120]
[398353970,1765550666872,-500.0,0.00042191,120]
[398353971,1765550666915,-500.0,0.00042191,120]
[398353972,1765550666957,-514.07,0.00042191,120]
[398353973,1765550667000,-218.83484189,0.00042191,120]
[398353974,1765550667042,-500.0,0.00042191,120]
[398353975,1765550667084,-500.0,0.00042191,120]
[398353976,1765550667125,-557.56,0.00042191,120]
[398353977,1765550667166,-500.0,0.00042191,120]
[398353978,1765550667206,-500.0,0.00042191,120]
[398353979,1765550667246,-784.13,0.00042191,120]
[398353980,1765550667288,-500.0,0.00042191,120]
[398353981,1765550667331,-580.32,0.00042191,120]
[398353982,1765550667375,-500.0,0.00042191,120]
[398353983,1765550667427,-500.0,0.00042191,120]
[398353984,1765550667472,-500.0,0.00042191,120]
[398353985,1765550667517,-500.0,0.00042191,120]
[398353986,1765550667563,-500.0,0.00042191,120]
[398353987,1765550667607,-500.0,0.00042191,120]
[398353988,1765550667649,-500.0,0.00042191,120]
[398353989,1765550667691,-887.99,0.00042191,120]
[398353990,1765550667731,-500.0,0.00042191,120]
[398353991,1765550667771,-633.52,0.00042191,120]
[398353992,1765550667810,-500.0,0.00042191,120]
[398353993,1765550667848,-500.0,0.00042191,120]
[398353994,1765550667890,-500.0,0.00042191,120]
[398353995,1765550667930,-500.0,0.00042191,120]
[398353996,1765550667970,-500.0,0.00042191,120]
[398353997,1765550668008,-1098.42,0.00042191,120]
[398353998,1765550668048,-501.8531808,0.00042191,120]
[398353999,1765550668089,-500.0,0.00042191,120]
[398354000,1765550668130,-1335.95,0.00042191,120]
[398354001,1765550668169,-500.0,0.00042191,120]
[398354002,1765550668208,-500.0,0.00042191,120]
[398354003,1765550668248,-500.0,0.00042191,120]
[398354004,1765550668290,-950.34,0.00042191,120]
[398354005,1765550668328,-500.0,0.00042191,120]
[398354006,1765550668368,-500.0,0.00042191,120]
[398354007,1765550668407,-500.0,0.00042191,30]
[398354008,1765550668605,-500.0,0.00042191,120]
[398354009,1765550668641,-1237.89,0.00042191,120]
[398354010,1765550668676,-500.0,0.00042191,120]
[398354011,1765550668712,-646.81941145,0.00042191,120]
[398354012,1765550668750,-500.0,0.00042191,120]
[398354013,1765550668787,-500.0,0.00042191,120]
[398354014,1765550668823,-1050.96,0.00042191,120]
[398354015,1765550668860,-500.0,0.00042191,120]
[398354016,1765550668899,-599.7,0.00042191,120]
[398354017,1765550668936,-756.15,0.00042191,120]
[398354018,1765550668972,-627.07,0.00042191,120]
[398354019,1765550669008,-630.5,0.00042191,120]
[398354020,1765550669046,-846.67,0.00042191,120]
[398354021,1765550669085,-500.0,0.00042191,120]
[398354022,1765550669127,-500.0,0.00042191,120]
[398354023,1765550669165,-592.88,0.00042191,120]
[398354024,1765550669202,-500.0,0.00042191,120]
[398354025,1765550669239,-500.0,0.00042191,120]
[398354026,1765550669276,-1313.08,0.00042191,120]
[398354027,1765550669312,-500.0,0.00042191,120]
[398354028,1765550669351,-2756.78,0.00042191,120]
[398354029,1765550669388,-500.0,0.00042191,120]
[398354030,1765550669425,-784.6,0.00042191,120]
[398354031,1765550669462,-500.0,0.00042191,120]
[398354032,1765550669498,-2350.79,0.00042191,120]
[398354033,1765550669535,-500.0,0.00042191,120]
[398354034,1765550669571,-500.0,0.00042191,120]
[398354035,1765550669607,-500.0,0.00042191,120]
[398354036,1765550669644,-500.0,0.00042191,120]
[398354037,1765550669680,-678.0,0.00042191,120]
[398354038,1765550669715,-500.0,0.00042191,120]
[398354039,1765550669751,-500.0,0.00042191,120]
[398354040,1765550669786,-500.0,0.00042191,120]
[398354041,1765550669822,-551.87,0.00042191,120]
[398354042,1765550669861,-500.0,0.00042191,120]
[398354043,1765550669899,-2805.16,0.00042191,120]
[398354044,1765550669936,-770.49,0.00042191,120]
[398354045,1765550669974,-500.0,0.00042191,120]
[398354046,1765550670014,-1853.03,0.00042191,120]
[398354047,1765550670057,-500.0,0.00042191,120]
[398354048,1765550670106,-1526.12,0.00042191,120]
[398354049,1765550670145,-500.0,0.00042191,120]
[398354050,1765550670184,-500.0,0.00042191,120]
[398354051,1765550670226,-500.0,0.00042191,120]
[398354052,1765550670262,-500.0,0.00042191,120]
[398354053,1765550670297,-656.45,0.00042191,120]
[398354054,1765550670336,-500.0,0.00042191,120]
[398354055,1765550670372,-500.0,0.00042191,120]
[398354056,1765550670410,-976.43,0.00042191,120]
[398354057,1765550670447,-500.0,0.00042191,120]
[398354058,1765550670483,-1044.0,0.00042191,120]
[398354059,1765550670518,-789.39,0.00042191,120]
[398354060,1765550670553,-500.0,0.00042191,120]
[398354061,1765550670591,-500.0,0.00042191,120]
[398354062,1765550670626,-500.0,0.00042191,120]
[398354063,1765550670661,-1109.49,0.00042191,120]
[398354064,1765550670696,-1167.12,0.00042191,120]
[398354065,1765550670730,-500.0,0.00042191,120]
[398354066,1765550670766,-631.56,0.00042191,120]
[398354067,1765550670804,-500.0,0.00042191,120]
[398354068,1765550670844,-500.0,0.00042191,120]
[398354069,1765550670882,-1530.04,0.00042191,30]
[398354070,1765550670922,-500.0,0.00042191,120]
[398354071,1765550670963,-500.0,0.00042191,120]
[398354072,1765550671004,-500.0,0.00042191,120]
[398354073,1765550671046,-500.0,0.00042191,120]
[398354074,1765550671087,-500.0,0.00042191,120]
[398354075,1765550671126,-500.0,0.00042191,120]
[398354076,1765550671169,-500.0,0.00042191,120]
[398354077,1765550671214,-510.37,0.00042191,120]
[398354078,1765550671257,-500.0,0.00042191,120]
[398354079,1765550671297,-2114.75886115,0.00042191,60]
[398354080,1765550671340,-530.49,0.00042191,120]
[398354081,1765550671384,-500.0,0.00042191,120]
[398354082,1765550671426,-500.0,0.00042191,120]
[398354083,1765550671466,-500.0,0.00042191,120]
[398354084,1765550671506,-593.35,0.00042191,120]
[398354085,1765550671546,-500.0,0.00042191,120]
[398354086,1765550671591,-1767.15,0.00042191,120]
[398354087,1765550671633,-1131.39,0.00042191,120]
[398354088,1765550671670,-500.0,0.00042191,120]
[398354089,1765550671708,-1136.91,0.00042191,120]
[398354090,1765550671747,-1199.96,0.00042191,120]
[398354091,1765550671785,-500.0,0.00042191,120]
[398354092,1765550671825,-863.6,0.00042191,120]
[398354093,1765550671866,-500.0,0.00042191,120]
[398354094,1765550671906,-500.0,0.00042191,120]
[398354095,1765550671943,-1062.86,0.00042191,120]
[398354096,1765550671982,-760.7,0.00042191,120]
[398354097,1765550672019,-500.0,0.00042191,120]
[398354098,1765550672055,-622.22,0.00042191,120]
[398354099,1765550672092,-633.34,0.00042191,120]
[398354100,1765550672128,-785.6,0.00042191,120]
[398354101,1765550672165,-216.37,0.00042191,41]
[398354102,1765550672202,-500.0,0.00042191,120]
[398354103,1765550672405,-1007.11,0.00042191,120]
[398354104,1765550672447,-500.0,0.00042191,120]
[398354105,1765550672486,-643.45,0.00042191,120]
[398354106,1765550672523,-605.35,0.00042191,120]
[398354107,1765550672561,-1267.0,0.00042191,120]
[398354108,1765550672600,-603.04673844,0.00042191,120]
[398354109,1765550672638,-500.0,0.00042191,120]
[398354110,1765550672676,-1317.67,0.00042191,120]
[398354111,1765550672711,-500.0,0.00042191,120]
[398354112,1765550672746,-2532.65,0.00042191,120]
[398354113,1765550672782,-500.0,0.00042191,120]
[398354114,1765550672818,-500.0,0.00042191,120]
[398354115,1765550672858,-500.0,0.00042191,120]
[398354116,1765550672896,-500.0,0.00042191,120]
[398354117,1765550672932,-508.53815296,0.00042191,120]
[398354118,1765550672968,-500.0,0.00042191,120]
[398354119,1765550673004,-649.21,0.00042191,120]
[398354120,1765550673044,-522.89,0.00042191,120]
[398354121,1765550673081,-500.0,0.00042191,120]
[398354122,1765550673121,-535.99,0.00042191,60]
[398354123,1765550673157,-1816.61,0.00042191,120]
[398354124,1765550673195,-500.0,0.00042191,120]
[398354125,1765550673231,-500.0,0.00042191,120]
[398354126,1765550673266,-2896.16,0.00042191,120]
[398354127,1765550673300,-1053.13,0.00042191,120]
[398354128,1765550673339,-500.0,0.00042191,120]
[398354129,1765550673379,-500.0,0.00042191,120]
[398354130,1765550673417,-901.04,0.00042191,120]
[398354131,1765550673455,-500.0,0.00042191,120]
[398354132,1765550673491,-2528.58,0.00042191,30]
[398354133,1765550673527,-500.0,0.00042191,120]
[398354134,1765550673568,-500.0,0.00042191,120]
[398354135,1765550673606,-500.0,0.00042191,120]
[398354136,1765550673643,-501.58205203,0.00042191,120]
[398354137,1765550673681,-500.0,0.00042191,120]
[398354138,1765550673721,-500.0,0.00042191,120]
[398354139,1765550673762,-2217.63,0.00042191,120]
[398354140,1765550673801,-500.0,0.00042191,120]
[398354141,1765550673842,-1430.93,0.00042191,120]
[398354142,1765550673881,-500.0,0.00042191,120]
[398354143,1765550673920,-500.0,0.00042191,120]
[398354144,1765550673961,-513.15432434,0.00042191,120]
[398354145,1765550674001,-167.0965131,0.00042191,120]
[398354146,1765550674041,-1274.91,0.00042191,120]
[398354147,1765550674087,-500.0,0.00042191,120]
[398354148,1765550674127,-500.0,0.00042191,120]
[398354149,1765550674168,-1530.36,0.00042191,120]
[398354150,1765550674209,-2304.51,0.00042191,120]
[398354151,1765550674251,-290.65856468,0.00042191,120]
[398354152,1765550674292,-1066.0,0.00042191,120]
[398354153,1765550674331,-2307.18,0.00042191,120]
[398354154,1765550674379,-500.0,0.00042191,120]
[398354155,1765550674427,-500.0,0.00042191,120]
[398354156,1765550674475,-780.18,0.00042191,120]
[398354157,1765550674516,-500.0,0.00042191,120]
[398354158,1765550674554,-587.09,0.00042191,120]
[398354159,1765550674596,-912.38,0.00042191,120]
[398354160,1765550674634,-603.18306338,0.00042191,120]
[398354161,1765550674671,-500.0,0.00042191,120]
[398354162,1765550674707,-500.0,0.00042191,120]
[398354163,1765550674742,-500.0,0.00042191,120]
[398354164,1765550674777,-500.0,0.00042191,120]
[398354165,1765550674812,-757.56,0.00042191,120]
[398354166,1765550674847,-1239.73,0.00042191,120]
[398354167,1765550674881,-655.77,0.00042191,120]
[398354168,1765550674915,-500.0,0.00042191,120]
[398354169,1765550674950,-500.0,0.00042191,120]
[398354170,1765550674985,-775.49,0.00042191,120]
[398354171,1765550675020,-550.93,0.00042191,120]
[398354172,1765550675055,-1207.54,0.00042191,120]
[398354173,1765550675091,-600.79,0.00042191,120]
[398354174,1765550675128,-500.0,0.00042191,120]
[398354175,1765550675165,-500.0,0.00042191,90]
[398354176,1765550675202,-4967.13,0.00042191,120]
[398354177,1765550675241,-673.72,0.00042191,120]
[398354178,1765550675282,-500.0,0.00042191,120]
[398354179,1765550675323,-500.0,0.00042191,120]
[398354180,1765550675367,-500.0,0.00042191,120]
[398354181,1765550675406,-500.0,0.00042191,120]
[398354182,1765550675445,-508.26,0.00042191,120]
[398354183,1765550675483,-740.52,0.00042191,120]
[398354184,1765550675520,-2196.53,0.00042191,120]
[398354185,1765550675558,-836.83,0.00042191,120]
[398354186,1765550675602,-500.0,0.00042191,120]
[398354187,1765550675640,-628.01,0.00042191,120]
[398354188,1765550675677,-500.0,0.00042191,120]
[398354189,1765550675713,-519.93,0.00042191,120]
[398354190,1765550675748,-978.47,0.00042191,120]
[398354191,1765550675784,-500.0,0.00042191,120]
[398354192,1765550675820,-500.0,0.00042191,120]
[398354193,1765550675856,-965.14,0.00042191,120]
[398354194,1765550675892,-500.0,0.00042191,120]
[398354195,1765550675927,-500.0,0.00042191,120]
[398354196,1765550675963,-500.0,0.00042191,120]
[398354197,1765550676000,-1184.12,0.00042191,120]
[398354198,1765550676207,-500.0,0.00042191,120]
[398354199,1765550676249,-500.0,0.00042191,120]
[398354200,1765550676289,-902.21,0.00042191,120]
[398354201,1765550676331,-572.16,0.00042191,120]
[398354202,1765550676372,-500.0,0.00042191,120]
[398354203,1765550676413,-500.0,0.00042191,120]
[398354204,1765550676457,-1561.62,0.00042191,120]
[398354205,1765550676498,-1553.54,0.00042191,120]
[398354206,1765550676541,-28106.34,0.00042191,120]
[398354207,1765550676581,-749.87,0.00042191,120]
[398354208,1765550676624,-500.0,0.00042191,120]
[398354209,1765550676667,-500.0,0.00042191,120]
[398354210,1765550676708,-500.0,0.00042191,120]
[398354211,1765550676748,-1859.36,0.00042191,120]
[398354212,1765550676787,-500.0,0.00042191,120]
[398354213,1765550676828,-500.0,0.00042191,120]
[398354214,1765550676869,-500.0,0.00042191,120]
[398354215,1765550676910,-1893.46,0.00042191,120]
[398354216,1765550676950,-830.87,0.00042191,120]
[398354217,1765550676989,-500.0,0.00042191,120]
[398354218,1765550677028,-534.91,0.00042191,120]
[398354219,1765550677064,-2243.46,0.00042191,120]
[398354220,1765550677101,-6367.5,0.00042191,120]
[398354221,1765550677137,-500.0,0.00042191,120]
[398354222,1765550677174,-500.0,0.00042191,120]
[398354223,1765550677213,-514.59,0.00042191,60]
[398354224,1765550677248,-500.0,0.00042191,120]
[398354225,1765550677284,-500.0,0.00042191,120]
[398354226,1765550677320,-3453.8,0.00042191,120]
[398354227,1765550677357,-500.0,0.00042191,120]
[398354228,1765550677393,-210.32129918,0.00042191,120]
[398354229,1765550677431,-835.05,0.00042191,120]
[398354230,1765550677467,-2657.46,0.00042191,120]
[398354231,1765550677502,-1899.05,0.00042191,120]
[398354232,1765550677536,-500.0,0.00042191,120]
[398354233,1765550677571,-2922.69,0.00042191,120]
[398354234,1765550677606,-1195.32,0.00042191,120]
[398354235,1765550677641,-500.0,0.00042191,120]
[398354236,1765550677675,-1029.2,0.00042191,120]
[398354237,1765550677710,-501.45198794,0.00042191,120]
[398354238,1765550677746,-500.0,0.00042191,120]
[398354239,1765550677780,-3323.03,0.00042191,120]
[398354240,1765550677815,-856.23,0.00042191,120]
[398354241,1765550677850,-500.0,0.00042191,120]
[398354242,1765550677885,-500.0,0.00042191,120]
[398354243,1765550677920,-531.36295882,0.00042191,120]
[398354244,1765550677957,-4775.19,0.00042191,120]
[398354245,1765550677992,-587.4183162,0.00042191,120]
[398354246,1765550678027,-2051.1,0.00042191,120]
[398354247,1765550678063,-300.11658263,0.00042191,120]
[398354248,1765550678101,-3114.34,0.00042191,120]
[398354249,1765550678139,-1277.89,0.00042191,120]
[398354250,1765550678181,-8536.48,0.00042191,120]
[398354251,1765550678221,-3566.64,0.00042191,120]
[398354252,1765550678259,-602.99,0.00042191,120]
[398354253,1765550678297,-700.66,0.00042191,120]
[398354254,1765550678334,-635.26468288,0.00042191,120]
[398354255,1765550678379,-500.0,0.00042191,120]
[398354256,1765550678418,-1213.05,0.00042191,120]
[398354257,1765550678458,-501.31897427,0.00042191,120]
[398354258,1765550678493,-1525.15,0.00042191,120]
[398354259,1765550678531,-500.0,0.00042191,120]
[398354260,1765550678571,-500.0,0.00042191,120]
[398354261,1765550678608,-500.0,0.00042191,120]
[398354262,1765550678647,-623.0,0.00042191,120]
[398354263,1765550678685,-500.0,0.00042191,120]
[398354264,1765550678723,-500.0,0.00042191,120]
[398354265,1765550678761,-862.66,0.00042191,120]
[398354266,1765550678800,-34926.57,0.00042191,120]
[398354267,1765550678838,-537.63,0.00042191,120]
[398354268,1765550678879,-500.0,0.00042191,120]
[398354269,1765550678922,-2694.37,0.00042191,120]
[398354270,1765550678966,-2328.13,0.00042191,120]
[398354271,1765550679014,-1190.56,0.00042191,120]
[398354272,1765550679056,-501.5234025,0.00042191,120]
[398354273,1765550679096,-1766.21,0.00042191,120]
[398354274,1765550679137,-500.0,0.00042191,120]
[398354275,1765550679177,-566.66,0.00042191,120]
[398354276,1765550679214,-500.0,0.00042191,120]
[398354277,1765550679260,-1386.22,0.00042191,120]
[398354278,1765550679296,-717.34,0.00042191,120]
[398354279,1765550679333,-888.61,0.00042191,120]
[398354280,1765550679380,-1317.41,0.00042191,120]
[398354281,1765550679425,-1687.34,0.00042191,120]
[398354282,1765550679468,-500.0,0.00042191,120]
[398354283,1765550679511,-500.0,0.00042191,120]
[398354284,1765550679552,-1002.76,0.00042191,120]
[398354285,1765550679597,-849.49,0.00042191,120]